[Event "Latvijas 2022. gada jauniešu čempionāta fināls"]
[Site "Riga, Latvia"]
[Date "2022.06.15"]
[Round "7.5"]
[White "Ivulans, Patriks"]
[Black "Andrusevics, Jegors"]
[Result "0-1"]
[TimeControl "3600+30"]
[WhiteElo "1148"]
[BlackElo "1569"]

1. e4 {[%clk 01:00:56]} {[%emt 00:00:03]} e6 {[%clk 00:59:31]} {[%emt
00:01:30]} 2. d4 {[%clk 01:01:14]} {[%emt 00:00:12]} d5 {[%clk 00:59:17]}
{[%emt 00:00:44]} 3. Nd2 {[%clk 01:00:24]} {[%emt 00:01:19]} c5 {[%clk
00:58:34]} {[%emt 00:01:14]} 4. exd5 {[%clk 00:59:35]} {[%emt 00:01:19]} Qxd5
{[%clk 00:57:47]} {[%emt 00:01:18]} 5. Ngf3 {[%clk 00:58:58]} {[%emt 00:01:06]}
Nc6 {[%clk 00:57:13]} {[%emt 00:01:04]} 6. Bc4 {[%clk 00:55:26]} {[%emt
00:04:02]} Qd8 {[%clk 00:56:51]} {[%emt 00:00:51]} 7. O-O {[%clk 00:52:27]}
{[%emt 00:03:29]} Nf6 {[%clk 00:57:00]} {[%emt 00:00:22]} 8. Nb3 {[%clk
00:50:37]} {[%emt 00:02:19]} cxd4 {[%clk 00:57:07]} {[%emt 00:00:23]} 9. Qe2
{[%clk 00:50:16]} {[%emt 00:00:52]} Be7 {[%clk 00:57:05]} {[%emt 00:00:32]} 10.
Rd1 {[%clk 00:50:22]} {[%emt 00:00:24]} O-O {[%clk 00:56:56]} {[%emt 00:00:38]}
11. Nbxd4 {[%clk 00:50:10]} {[%emt 00:00:42]} Qc7 {[%clk 00:55:52]} {[%emt
00:01:35]} 12. Nxc6 {[%clk 00:49:18]} {[%emt 00:01:23]} bxc6 {[%clk 00:55:55]}
{[%emt 00:00:27]} 13. Bg5 {[%clk 00:45:49]} {[%emt 00:03:58]} Bb7 {[%clk
00:55:21]} {[%emt 00:01:04]} 14. Bh4 {[%clk 00:45:00]} {[%emt 00:01:19]} Nd5
{[%clk 00:53:26]} {[%emt 00:02:24]} 15. Bg3 {[%clk 00:44:05]} {[%emt 00:01:26]}
Bd6 {[%clk 00:52:21]} {[%emt 00:01:35]} 16. Bxd6 {[%clk 00:44:20]} {[%emt
00:00:15]} Qxd6 {[%clk 00:52:46]} {[%emt 00:00:04]} 17. Bb3 {[%clk 00:43:25]}
{[%emt 00:01:26]} Qc7 {[%clk 00:51:33]} {[%emt 00:01:44]} 18. c3 {[%clk
00:40:42]} {[%emt 00:03:12]} c5 {[%clk 00:48:21]} {[%emt 00:03:42]} 19. Bc2
{[%clk 00:39:56]} {[%emt 00:01:14]} Nf6 {[%clk 00:47:52]} {[%emt 00:01:01]} 20.
Ne1 {[%clk 00:34:14]} {[%emt 00:06:11]} Rad8 {[%clk 00:46:40]} {[%emt
00:01:42]} 21. c4 {[%clk 00:32:49]} {[%emt 00:01:56]} Rfe8 {[%clk 00:39:19]}
{[%emt 00:07:50]} 22. Rd3 {[%clk 00:31:38]} {[%emt 00:01:42]} Rxd3 {[%clk
00:38:21]} {[%emt 00:01:28]} 23. Nxd3 {[%clk 00:31:49]} {[%emt 00:00:18]} Be4
{[%clk 00:36:46]} {[%emt 00:02:06]} 24. Ne1 {[%clk 00:31:32]} {[%emt 00:00:48]}
Bxc2 {[%clk 00:36:45]} {[%emt 00:00:31]} 25. Nxc2 {[%clk 00:31:55]} {[%emt
00:00:06]} Rd8 {[%clk 00:36:58]} {[%emt 00:00:17]} 26. Rd1 {[%clk 00:32:18]}
{[%emt 00:00:08]} h6 {[%clk 00:35:13]} {[%emt 00:02:14]} 27. Na3 {[%clk
00:31:33]} {[%emt 00:01:15]} a6 {[%clk 00:35:08]} {[%emt 00:00:35]} 28. Nb1
{[%clk 00:31:40]} {[%emt 00:00:23]} Rxd1+ {[%clk 00:34:25]} {[%emt 00:01:14]}
29. Qxd1 {[%clk 00:32:01]} {[%emt 00:00:08]} Qe5 {[%clk 00:34:36]} {[%emt
00:00:19]} 30. Nc3 {[%clk 00:30:40]} {[%emt 00:01:51]} Qd4 {[%clk 00:34:10]}
{[%emt 00:00:56]} 31. Qxd4 {[%clk 00:30:50]} {[%emt 00:00:20]} cxd4 {[%clk
00:34:27]} {[%emt 00:00:13]} 32. Nd1 {[%clk 00:30:53]} {[%emt 00:00:27]} Ne4
{[%clk 00:34:25]} {[%emt 00:00:31]} 33. Kf1 {[%clk 00:30:51]} {[%emt 00:00:33]}
e5 {[%clk 00:34:12]} {[%emt 00:00:43]} 34. f3 {[%clk 00:30:58]} {[%emt
00:00:23]} Nd2+ {[%clk 00:34:30]} {[%emt 00:00:12]} 35. Ke2 {[%clk 00:31:06]}
{[%emt 00:00:21]} Nxc4 {[%clk 00:34:57]} {[%emt 00:00:04]} 36. Kd3 {[%clk
00:31:29]} {[%emt 00:00:07]} Nd6 {[%clk 00:35:22]} {[%emt 00:00:05]} 37. b4
{[%clk 00:31:09]} {[%emt 00:00:50]} Kf8 {[%clk 00:35:19]} {[%emt 00:00:33]} 38.
Nb2 {[%clk 00:31:09]} {[%emt 00:00:30]} Ke7 {[%clk 00:35:30]} {[%emt 00:00:19]}
39. a4 {[%clk 00:31:22]} {[%emt 00:00:17]} Kd7 {[%clk 00:35:53]} {[%emt
00:00:07]} 40. Kc2 {[%clk 00:30:18]} {[%emt 00:01:34]} Kc6 {[%clk 00:36:00]}
{[%emt 00:00:23]} 41. Nd3 {[%clk 00:30:15]} {[%emt 00:00:33]} f6 {[%clk
00:35:57]} {[%emt 00:00:32]} 42. Kb3 {[%clk 00:30:36]} {[%emt 00:00:10]} Kb6
{[%clk 00:35:04]} {[%emt 00:01:23]} 43. Nc5 {[%clk 00:28:45]} {[%emt 00:02:22]}
Nf5 {[%clk 00:34:40]} {[%emt 00:00:53]} 44. Nd3 {[%clk 00:28:28]} {[%emt
00:00:47]} Ne3 {[%clk 00:34:42]} {[%emt 00:00:28]} 45. g3 {[%clk 00:28:03]}
{[%emt 00:00:55]} Nf1 {[%clk 00:34:31]} {[%emt 00:00:41]} 46. Kc4 {[%clk
00:27:44]} {[%emt 00:00:48]} Nd2+ {[%clk 00:34:34]} {[%emt 00:00:28]} 47. Kd5
{[%clk 00:27:49]} {[%emt 00:00:25]} Nxf3 {[%clk 00:34:52]} {[%emt 00:00:12]} 48.
h3 {[%clk 00:27:24]} {[%emt 00:00:55]} Ng5 {[%clk 00:34:52]} {[%emt 00:00:30]}
49. Kc4 {[%clk 00:26:46]} {[%emt 00:01:08]} Ne4 {[%clk 00:32:56]} {[%emt
00:02:26]} 50. b5 {[%clk 00:26:04]} {[%emt 00:01:12]} axb5+ {[%clk 00:32:52]}
{[%emt 00:00:34]} 51. axb5 {[%clk 00:26:23]} {[%emt 00:00:12]} Nd6+ {[%clk
00:35:00]} {[%emt 00:01:12]} 52. Kb4 {[%clk 00:26:26]} {[%emt 00:00:38]} Nxb5
{[%clk 00:35:10]} {[%emt 00:00:20]} 53. Kb3 {[%clk 00:26:48]} {[%emt 00:00:08]}
e4 {[%clk 00:35:32]} {[%emt 00:00:08]} 54. Nf4 {[%clk 00:27:03]} {[%emt
00:00:13]} Kc5 {[%clk 00:35:15]} {[%emt 00:00:48]} 55. Ne6+ {[%clk 00:27:21]}
{[%emt 00:00:12]} Kd5 {[%clk 00:35:41]} {[%emt 00:00:04]} 56. Nf4+ {[%clk
00:27:18]} {[%emt 00:00:33]} Ke5 {[%clk 00:35:50]} {[%emt 00:00:21]} 57. Kc2
{[%clk 00:27:02]} {[%emt 00:00:46]} Nd6 {[%clk 00:36:04]} {[%emt 00:00:16]} 58.
Kd2 {[%clk 00:27:11]} {[%emt 00:00:21]} Nf5 {[%clk 00:36:29]} {[%emt 00:00:05]}
59. Ng6+ {[%clk 00:27:09]} {[%emt 00:00:31]} Kd5 {[%clk 00:36:54]} {[%emt
00:00:06]} 60. Nf4+ {[%clk 00:27:29]} {[%emt 00:00:10]} Kc4 {[%clk 00:37:18]}
{[%emt 00:00:06]} 61. g4 {[%clk 00:27:33]} {[%emt 00:00:27]} Ne7 {[%clk
00:37:00]} {[%emt 00:00:47]} 62. h4 {[%clk 00:25:41]} {[%emt 00:02:22]} Nd5
{[%clk 00:37:20]} {[%emt 00:00:10]} 63. Ne2 {[%clk 00:25:40]} {[%emt 00:00:31]}
d3 {[%clk 00:37:42]} {[%emt 00:00:08]} 64. Ng3 {[%clk 00:25:42]} {[%emt
00:00:27]} e3+ {[%clk 00:38:08]} {[%emt 00:00:05]} 65. Ke1 {[%clk 00:25:54]}
{[%emt 00:00:18]} d2+ {[%clk 00:38:31]} {[%emt 00:00:07]} 66. Kd1 {[%clk
00:26:12]} {[%emt 00:00:12]} Nc3+ {[%clk 00:38:59]} {[%emt 00:00:02]} 67. Kc2
{[%clk 00:26:29]} {[%emt 00:00:14]} d1=Q+ {[%clk 00:39:22]} {[%emt 00:00:07]}
68. Kb2 {[%clk 00:26:46]} {[%emt 00:00:12]} Qb1+ {[%clk 00:39:49]} {[%emt
00:00:03]} 69. Ka3 {[%clk 00:26:59]} {[%emt 00:00:18]} Qb3# {[%clk 00:40:07]}
{[%emt 00:00:11]} 0-1

[Event "Latvijas 2022. gada jauniešu čempionāta fināls"]
[Site "Riga, Latvia"]
[Date "2022.06.15"]
[Round "7.6"]
[White "Derbenev, Arseniy"]
[Black "Merzlovs, Timurs"]
[Result "1-0"]
[TimeControl "3600+30"]
[WhiteElo "1477"]
[BlackElo "1152"]

1. e4 {[%clk 01:00:59]} e5 {[%clk 01:00:55]} {[%emt 00:00:06]} 2. Nf3 {[%clk
01:01:26]} {[%emt 00:00:03]} Nc6 {[%clk 01:01:21]} {[%emt 00:00:05]} 3. Bc4
{[%clk 01:01:52]} {[%emt 00:00:03]} Bc5 {[%clk 01:01:46]} {[%emt 00:00:05]} 4.
d3 {[%clk 01:02:16]} {[%emt 00:00:05]} Nf6 {[%clk 01:02:09]} {[%emt 00:00:07]}
5. Nc3 {[%clk 01:02:39]} {[%emt 00:00:05]} d6 {[%clk 01:02:34]} {[%emt
00:00:07]} 6. Bg5 {[%clk 01:03:04]} {[%emt 00:00:05]} h6 {[%clk 01:02:59]}
{[%emt 00:00:06]} 7. Bxf6 {[%clk 01:03:30]} {[%emt 00:00:03]} gxf6 {[%clk
01:03:06]} {[%emt 00:00:24]} 8. Qd2 {[%clk 01:03:40]} {[%emt 00:00:19]} Be6
{[%clk 01:03:22]} {[%emt 00:00:15]} 9. Nd5 {[%clk 01:02:25]} {[%emt 00:01:44]}
Bxd5 {[%clk 01:03:39]} {[%emt 00:00:13]} 10. Bxd5 {[%clk 01:02:36]} {[%emt
00:00:19]} Qd7 {[%clk 01:03:45]} {[%emt 00:00:25]} 11. O-O-O {[%clk 01:01:57]}
{[%emt 00:01:08]} O-O-O {[%clk 01:04:05]} {[%emt 00:00:10]} 12. Bxc6 {[%clk
00:57:35]} {[%emt 00:04:52]} Qxc6 {[%clk 01:04:22]} {[%emt 00:00:14]} 13. Qe2
{[%clk 00:55:45]} {[%emt 00:02:15]} d5 {[%clk 01:02:50]} {[%emt 00:02:07]} 14.
Nh4 {[%clk 00:53:50]} {[%emt 00:02:25]} Qb5 {[%clk 01:01:34]} {[%emt 00:01:46]}
15. Qf3 {[%clk 00:52:23]} {[%emt 00:01:56]} Qb6 {[%clk 01:00:50]} {[%emt
00:01:15]} 16. Nf5 {[%clk 00:38:31]} {[%emt 00:14:21]} d4 {[%clk 00:59:38]}
{[%emt 00:01:43]} 17. Qh5 {[%clk 00:35:30]} {[%emt 00:03:30]} Qe6 {[%clk
00:59:18]} {[%emt 00:00:50]} 18. Kb1 {[%clk 00:35:17]} {[%emt 00:00:43]} Bb6
{[%clk 00:58:57]} {[%emt 00:00:52]} 19. Ng7 {[%clk 00:34:47]} {[%emt 00:00:56]}
Qe7 {[%clk 00:59:02]} {[%emt 00:00:28]} 20. Nf5 {[%clk 00:33:33]} {[%emt
00:01:44]} Qe6 {[%clk 00:59:05]} {[%emt 00:00:28]} 21. g4 {[%clk 00:32:38]}
{[%emt 00:01:23]} c5 {[%clk 00:57:40]} {[%emt 00:01:57]} 22. Ng7 {[%clk
00:31:55]} {[%emt 00:01:12]} Qe7 {[%clk 00:57:46]} {[%emt 00:00:24]} 23. h4
{[%clk 00:30:32]} {[%emt 00:01:53]} Rh7 {[%clk 00:57:36]} {[%emt 00:00:40]} 24.
Nf5 {[%clk 00:30:45]} {[%emt 00:00:17]} Qe6 {[%clk 00:57:49]} {[%emt 00:00:17]}
25. g5 {[%clk 00:30:45]} {[%emt 00:00:30]} fxg5 {[%clk 00:57:55]} {[%emt
00:00:25]} 26. hxg5 {[%clk 00:31:03]} {[%emt 00:00:12]} Rdh8 {[%clk 00:58:03]}
{[%emt 00:00:22]} 27. gxh6 {[%clk 00:31:00]} {[%emt 00:00:33]} Kb8 {[%clk
00:58:03]} {[%emt 00:00:30]} 28. Rdg1 {[%clk 00:30:46]} {[%emt 00:00:44]} Bd8
{[%clk 00:57:33]} {[%emt 00:00:59]} 29. Rg2 {[%clk 00:29:34]} {[%emt 00:01:43]}
Bf6 {[%clk 00:57:37]} {[%emt 00:00:25]} 30. Rhg1 {[%clk 00:29:05]} {[%emt
00:00:57]} Qe8 {[%clk 00:57:34]} {[%emt 00:00:36]} 31. a3 {[%clk 00:26:32]}
{[%emt 00:03:04]} Qf8 {[%clk 00:57:33]} {[%emt 00:00:30]} 32. Qf3 {[%clk
00:24:17]} {[%emt 00:02:43]} Kc7 {[%clk 00:57:36]} {[%emt 00:00:29]} 33. Rg4
{[%clk 00:23:11]} {[%emt 00:01:34]} b5 {[%clk 00:57:41]} {[%emt 00:00:26]} 34.
Qg3 {[%clk 00:23:05]} {[%emt 00:00:36]} a5 {[%clk 00:57:45]} {[%emt 00:00:27]}
35. f4 {[%clk 00:21:57]} {[%emt 00:01:36]} Qe8 {[%clk 00:56:35]} {[%emt
00:01:42]} 36. fxe5 {[%clk 00:20:38]} {[%emt 00:01:49]} Bxe5 {[%clk 00:56:57]}
{[%emt 00:00:08]} 37. Qe1 {[%clk 00:20:35]} {[%emt 00:00:32]} Kb6 {[%clk
00:57:15]} {[%emt 00:00:14]} 38. b4 {[%clk 00:19:30]} {[%emt 00:01:34]} a4
{[%clk 00:57:28]} {[%emt 00:00:18]} 39. bxc5+ {[%clk 00:19:45]} {[%emt
00:00:14]} Kxc5 {[%clk 00:57:51]} {[%emt 00:00:06]} 40. Qb4+ {[%clk 00:20:00]}
{[%emt 00:00:16]} Kc6 {[%clk 00:58:14]} {[%emt 00:00:07]} 41. Ka1 {[%clk
00:19:14]} {[%emt 00:01:16]} Qe6 {[%clk 00:57:54]} {[%emt 00:00:50]} 42. Ne7+
{[%clk 00:17:28]} {[%emt 00:02:15]} Kb6 {[%clk 00:58:05]} {[%emt 00:00:20]} 43.
Nf5 {[%clk 00:16:45]} {[%emt 00:01:13]} Kc6 {[%clk 00:58:21]} {[%emt 00:00:14]}
44. Qa5 {[%clk 00:16:17]} {[%emt 00:00:50]} Bc7 {[%clk 00:58:23]} {[%emt
00:00:35]} 45. Qa6+ {[%clk 00:13:50]} {[%emt 00:02:58]} Kd7 {[%clk 00:58:25]}
{[%emt 00:00:27]} 46. Qxb5+ {[%clk 00:13:36]} {[%emt 00:00:44]} Qc6 {[%clk
00:58:30]} {[%emt 00:00:25]} 47. Qxc6+ {[%clk 00:12:59]} {[%emt 00:01:08]} Kxc6
{[%clk 00:58:43]} {[%emt 00:00:17]} 48. Rg7 {[%clk 00:11:59]} {[%emt 00:01:29]}
1-0

[Event "Latvijas 2022. gada jauniešu čempionāta fināls"]
[Site "Riga, Latvia"]
[Date "2022.06.15"]
[Round "7.8"]
[White "Vasiljeva, Sofja"]
[Black "Jekabsone, Nellija"]
[Result "1-0"]
[TimeControl "3600+30"]
[WhiteElo "1676"]
[BlackElo "1120"]

1. e4 {[%clk 01:00:57]} {[%emt 00:00:02]} c5 {[%clk 01:00:52]} {[%emt
00:00:09]} 2. Nf3 {[%clk 01:01:20]} {[%emt 00:00:06]} d6 {[%clk 01:01:17]}
{[%emt 00:00:05]} 3. Bb5+ {[%clk 01:01:45]} {[%emt 00:00:05]} Nd7 {[%clk
01:00:50]} {[%emt 00:00:56]} 4. c3 {[%clk 00:54:49]} {[%emt 00:07:27]} Ngf6
{[%clk 00:59:47]} {[%emt 00:01:33]} 5. Qe2 {[%clk 00:52:48]} {[%emt 00:02:31]}
a6 {[%clk 00:57:48]} {[%emt 00:02:29]} 6. Bd3 {[%clk 00:52:29]} {[%emt
00:00:49]} e6 {[%clk 00:55:13]} {[%emt 00:03:05]} 7. O-O {[%clk 00:52:31]}
{[%emt 00:00:29]} Be7 {[%clk 00:55:27]} {[%emt 00:00:15]} 8. Bc2 {[%clk
00:52:17]} {[%emt 00:00:44]} O-O {[%clk 00:54:59]} {[%emt 00:00:57]} 9. d4
{[%clk 00:52:09]} {[%emt 00:00:39]} cxd4 {[%clk 00:54:50]} {[%emt 00:00:39]} 10.
cxd4 {[%clk 00:52:34]} {[%emt 00:00:05]} b5 {[%clk 00:50:42]} {[%emt 00:04:38]}
11. Nc3 {[%clk 00:50:56]} {[%emt 00:02:09]} Bb7 {[%clk 00:47:02]} {[%emt
00:04:09]} 12. a3 {[%clk 00:46:11]} {[%emt 00:05:16]} Rc8 {[%clk 00:43:46]}
{[%emt 00:03:45]} 13. Bf4 {[%clk 00:42:50]} {[%emt 00:03:51]} Re8 {[%clk
00:38:44]} {[%emt 00:05:32]} 14. h3 {[%clk 00:40:54]} {[%emt 00:02:26]} Nb6
{[%clk 00:32:52]} {[%emt 00:06:21]} 15. Rad1 {[%clk 00:38:21]} {[%emt
00:03:04]} Nc4 {[%clk 00:27:50]} {[%emt 00:05:31]} 16. e5 {[%clk 00:28:26]}
{[%emt 00:10:26]} dxe5 {[%clk 00:28:04]} {[%emt 00:00:16]} 17. dxe5 {[%clk
00:28:45]} {[%emt 00:00:10]} Qb6 {[%clk 00:26:05]} {[%emt 00:02:24]} 18. exf6
{[%clk 00:26:08]} {[%emt 00:03:13]} Bxf6 {[%clk 00:26:08]} {[%emt 00:00:27]} 19.
Ne4 {[%clk 00:21:49]} {[%emt 00:04:49]} Bxe4 {[%clk 00:25:11]} {[%emt
00:01:27]} 20. Qxe4 {[%clk 00:21:49]} {[%emt 00:00:30]} g6 {[%clk 00:22:57]}
{[%emt 00:02:43]} 21. Bc1 {[%clk 00:18:41]} {[%emt 00:03:38]} Nxb2 {[%clk
00:21:29]} {[%emt 00:01:59]} 22. Bxb2 {[%clk 00:17:02]} {[%emt 00:02:10]} Bxb2
{[%clk 00:21:48]} {[%emt 00:00:11]} 23. Bb1 {[%clk 00:14:02]} {[%emt 00:03:29]}
Bxa3 {[%clk 00:20:31]} {[%emt 00:01:47]} 24. Ne5 {[%clk 00:13:17]} {[%emt
00:01:15]} Bb2 {[%clk 00:17:42]} {[%emt 00:03:18]} 25. Rd7 {[%clk 00:10:49]}
{[%emt 00:02:58]} Bxe5 {[%clk 00:17:46]} {[%emt 00:00:27]} 26. Qxe5 {[%clk
00:11:11]} {[%emt 00:00:08]} Red8 {[%clk 00:17:33]} {[%emt 00:00:44]} 27. Rxd8+
{[%clk 00:10:07]} {[%emt 00:01:33]} Rxd8 {[%clk 00:17:53]} {[%emt 00:00:10]} 28.
Rc1 {[%clk 00:09:38]} {[%emt 00:00:58]} Qd4 {[%clk 00:16:49]} {[%emt 00:01:34]}
29. Qc7 {[%clk 00:09:27]} {[%emt 00:00:42]} Qd6 {[%clk 00:15:33]} {[%emt
00:01:46]} 30. Qb7 {[%clk 00:08:03]} {[%emt 00:01:53]} Rb8 {[%clk 00:15:01]}
{[%emt 00:01:02]} 31. Qc6 {[%clk 00:05:39]} {[%emt 00:02:55]} Qxc6 {[%clk
00:15:13]} {[%emt 00:00:18]} 32. Rxc6 {[%clk 00:06:07]} {[%emt 00:00:03]} Ra8
{[%clk 00:15:15]} {[%emt 00:00:27]} 33. Rb6 {[%clk 00:06:26]} {[%emt 00:00:11]}
Kf8 {[%clk 00:15:14]} {[%emt 00:00:31]} 34. Be4 {[%clk 00:06:51]} {[%emt
00:00:05]} Ra7 {[%clk 00:14:33]} {[%emt 00:01:11]} 35. Bb7 {[%clk 00:06:28]}
{[%emt 00:00:53]} a5 {[%clk 00:14:48]} {[%emt 00:00:15]} 36. Rxb5 {[%clk
00:06:54]} {[%emt 00:00:03]} a4 {[%clk 00:14:50]} {[%emt 00:00:29]} 37. Rb1
{[%clk 00:07:17]} {[%emt 00:00:07]} a3 {[%clk 00:15:11]} {[%emt 00:00:09]} 38.
Be4 {[%clk 00:07:33]} {[%emt 00:00:14]} a2 {[%clk 00:14:53]} {[%emt 00:00:48]}
39. Ra1 {[%clk 00:08:01]} {[%emt 00:00:03]} Ke7 {[%clk 00:14:59]} {[%emt
00:00:23]} 40. Bc2 {[%clk 00:08:09]} {[%emt 00:00:22]} Kd6 {[%clk 00:13:53]}
{[%emt 00:01:36]} 41. Bb3 {[%clk 00:08:24]} {[%emt 00:00:15]} Ra3 {[%clk
00:13:58]} {[%emt 00:00:25]} 42. Bxa2 {[%clk 00:08:42]} {[%emt 00:00:12]} Ke7
{[%clk 00:13:33]} {[%emt 00:00:54]} 43. Kf1 {[%clk 00:08:58]} {[%emt 00:00:14]}
Ra5 {[%clk 00:13:41]} {[%emt 00:00:23]} 44. Ke2 {[%clk 00:09:03]} {[%emt
00:00:25]} Re5+ {[%clk 00:13:28]} {[%emt 00:00:43]} 45. Kd2 {[%clk 00:09:22]}
{[%emt 00:00:12]} h5 {[%clk 00:13:07]} {[%emt 00:00:50]} 46. Bc4 {[%clk
00:09:32]} {[%emt 00:00:21]} Kf6 {[%clk 00:13:02]} {[%emt 00:00:34]} 47. Rb1
{[%clk 00:09:07]} {[%emt 00:00:54]} Rc5 {[%clk 00:12:54]} {[%emt 00:00:38]} 48.
Bd3 {[%clk 00:09:17]} {[%emt 00:00:21]} g5 {[%clk 00:12:49]} {[%emt 00:00:35]}
49. Rb5 {[%clk 00:09:07]} {[%emt 00:00:41]} Rc7 {[%clk 00:12:31]} {[%emt
00:00:47]} 50. Ke3 {[%clk 00:08:49]} {[%emt 00:00:47]} h4 {[%clk 00:11:48]}
{[%emt 00:01:14]} 51. f4 {[%clk 00:07:00]} {[%emt 00:02:19]} gxf4+ {[%clk
00:12:02]} {[%emt 00:00:16]} 52. Kxf4 {[%clk 00:07:25]} {[%emt 00:00:04]} Rc8
{[%clk 00:11:44]} {[%emt 00:00:48]} 53. Rh5 {[%clk 00:07:29]} {[%emt 00:00:26]}
Rc3 {[%clk 00:11:32]} {[%emt 00:00:42]} 54. Ke3 {[%clk 00:07:16]} 1-0